Workbook

Sheet Howden_results_JLAB
Y1: rdt soT corrigé | Z1: rdt vol corrigé
Y2: =#REF! ->  | Z2: =#REF! ->  | AB2: =[2]!extrapol_(AB1,Vol_ratio,Vol_MP_HP)/100 -> 0 | AF2: 7 Order Polynomial Trendline
Y3: =#REF! ->  | Z3: =#REF! ->  | AA3: =[2]!extrapol_(AA1,IsoT_ratio,IsoT_LPL_MP)/100 ->  | AB3: =[2]!extrapol_(AB1,IsoT_ratio,IsoT_MP_HP)/100 ->  | AF3: Equation: y = (c3 * x^3) + (c2 * x^2) + (c1 * x^1) + b
Y4: =#REF! ->  | Z4: =#REF! ->  | AF4: Xs | AG4: Pressure_ratio
J5: Screw Displacement of | K5: 6310 | L5: m3 | M5: according to Howden documentation | AF5: Ys | AG5: IsoT_LPL_MP
AF6: Order | AG6: 7
B7: isoT efficiency | AF7: Round Significants Digits | AG7: 5 | AK7: X= | AL7: 2.5
A8: ratio pressure | B8: LPL to MP | C8: LPR to MP | D8: MP to HP
A9: 1.5 | B9: 30.4 | C9: 48.1 | D9: 0 | H9: Tin | I9: Pin | J9: Pout | K9: Pr | L9: IsoT_ | M9: Vol_ | N9: rho | O9: m | P9: Motor Eff. | Q9: P | R9: Need | S9: Number | U9: delta | V9: delta | AF9: 1 | AG9: ="a"&8-AF9&"=" -> a7= | AH9: =INDEX(LINEST(INDIRECT($AG$5),INDIRECT($AG$4)^{1,2,3,4,5,6,7}),1,AF9) -> 0.0005931281742 | AI9: 7 | AJ9: ="a"&8-AF9&"="&AH9 -> a7=0.000593128174231136 | AK9: =ROUND(AH9,$AG$7-1-INT(LOG10(ABS(AH9)))) -> 0.00059313 | AL9: =AK9*$AL$7^AI9 -> 0.3620178223
A10: =A9+0.5 -> 2 | B10: 43.7 | C10: 53.8 | D10: 0 | H10: K | I10: atm | J10: atm | L10: % | M10: % | N10: kg/m3 | O10: g/s | P10: % | Q10: kW | R10: g/s | S10: of unit | U10: g/s | V10: % | AF10: 2 | AG10: a6= | AH10: =INDEX(LINEST(INDIRECT($AG$5),INDIRECT($AG$4)^{1,2,3,4,5,6,7}),1,AF10) -> -0.02763424617 | AI10: =AI9-1 -> 6 | AJ10: a6=-0.0276342461724885 | AK10: -0.027634 | AL10: -6.746582031
A11: 2.5 | B11: 49.6 | C11: 55.8 | D11: 52.5 | G11: Case 1 | AF11: 3 | AG11: a5= | AH11: =INDEX(LINEST(INDIRECT($AG$5),INDIRECT($AG$4)^{1,2,3,4,5,6,7}),1,AF11) -> 0.5389144643 | AI11: =AI10-1 -> 5 | AJ11: a5=0.538914464337901 | AK11: 0.53891 | AL11: 52.62792969
A12: =A11+0.5 -> 3 | B12: 50.9 | C12: 55.1 | D12: 52.9 | E12: =[2]!f_reg_(K12,$A$11:$A$26,$D$11:$D$26,7,"value") -> 52.99561084 | F12: =[2]!f_reg_(K12,$A$33:$A$48,$D$33:$D$48,7,"value") -> 79.0354398 | G12: MP_HP | H12: 310 | I12: 6 | J12: 19 | K12: =J12/I12 -> 3.166666667 | L12: =[2]!extrapol_($K12,Pressure_ratio,INDIRECT(L$9&$G12))/100 -> 0.5293333333 | M12: =[2]!extrapol_($K12,Pressure_ratio,INDIRECT(M$9&$G12))/100 -> 0.79 | N12: =[2]!rho_(10,I12/1.013,H12) -> 0.9174152044 | O12: =$K$5*N12/3.6*M12 -> 1270.339737 | P12: 0.96 | Q12: =O12*8.0312*H12/4.002*LN(K12)/L12/1000/P12 -> 1792.639785 | R12: 1321.4 | S12: =R12/O12 -> 1.040194179 | T12: 1 | U12: =O12*T12-R12 -> -51.06026322 | V12: =U12/(T12*O12) -> -0.04019417935 | AF12: 4 | AG12: a4= | AH12: =INDEX(LINEST(INDIRECT($AG$5),INDIRECT($AG$4)^{1,2,3,4,5,6,7}),1,AF12) -> -5.691772982 | AI12: 4 | AJ12: a4=-5.6917729817718 | AK12: -5.6918 | AL12: -222.3359375
A13: 3.5 | B13: 50.8 | C13: 53.9 | D13: 53 | E13: =[2]!f_reg_(K13,$A$9:$A$16,$C$9:$C$16,7,"value") -> 55.75655581 | F13: =[2]!f_reg_(K13,$A$31:$A$38,$C$31:$C$38,7,"value") -> 87.53920378 | G13: LPR_MP | H13: 306.3 | I13: 2.35 | J13: 6.15 | K13: =J13/I13 -> 2.617021277 | L13: =[2]!extrapol_($K13,Pressure_ratio,INDIRECT(L$9&$G13))/100 -> 0.5563617021 | M13: =[2]!extrapol_($K13,Pressure_ratio,INDIRECT(M$9&$G13))/100 -> 0.875 | N13: =[2]!rho_(10,I13/1.013,H13) -> 0.364232581 | O13: =$K$5*N13/3.6*M13 -> 558.6164272 | P13: 0.94 | Q13: =O13*8.0312*H13/4.002*LN(K13)/L13/1000/P13 -> 631.6414764 | R13: 562.7 | S13: =R13/O13 -> 1.007310155 | T13: 1 | U13: =O13*T13-R13 -> -4.083572819 | V13: -0.007310155271 | AF13: 5 | AG13: a3= | AH13: =INDEX(LINEST(INDIRECT($AG$5),INDIRECT($AG$4)^{1,2,3,4,5,6,7}),1,AF13) -> 35.11250654 | AI13: 3 | AJ13: a3=35.1125065434999 | AK13: 35.113 | AL13: 548.640625
A14: =A13+0.5 -> 4 | B14: 50.6 | C14: 52.3 | D14: 52.4 | E14: =[2]!f_reg_(K14,$A$9:$A$26,$B$9:$B$26,7,"value") -> 48.55137055 | F14: =[2]!f_reg_(K14,$A$31:$A$48,$B$31:$B$48,7,"value") -> 84.4035698 | G14: LPL_MP | H14: 306.1 | I14: 1.05 | J14: 6.15 | K14: 5.857142857 | L14: =[2]!extrapol_($K14,Pressure_ratio,INDIRECT(L$9&$G14))/100 -> 0.485 | M14: =[2]!extrapol_($K14,Pressure_ratio,INDIRECT(M$9&$G14))/100 -> 0.844 | N14: =[2]!rho_(10,I14/1.013,H14) -> 0.162941673 | O14: 241.0468588 | P14: 0.94 | Q14: 574.1135225 | R14: 748.7 | S14: =R14/O14 -> 3.106035083 | T14: 3 | U14: =O14*T14-R14 -> -25.5594237 | V14: =U14/(T14*O14) -> -0.0353450277 | AF14: 6 | AG14: a2= | AH14: =INDEX(LINEST(INDIRECT($AG$5),INDIRECT($AG$4)^{1,2,3,4,5,6,7}),1,AF14) -> -126.554793 | AI14: 2 | AJ14: a2=-126.554792978698 | AK14: -126.55 | AL14: -790.9375
A15: 4.5 | B15: 50.2 | C15: 50.8 | D15: 51.3 | P15: Total needed Power | Q15: =SUMPRODUCT(Q12:Q14,T12:T14) -> 4146.621829 | AF15: 7 | AG15: a1= | AH15: =INDEX(LINEST(INDIRECT($AG$5),INDIRECT($AG$4)^{1,2,3,4,5,6,7}),1,AF15) -> 246.1293068 | AI15: 1 | AJ15: a1=246.129306813879 | AK15: 246.13 | AL15: 615.325
A16: =A15+0.5 -> 5 | B16: 49.6 | C16: 49.4 | D16: 50.1 | AF16: 8 | AG16: ="a"&8-AF16&"=" -> a0= | AH16: =INDEX(LINEST(INDIRECT($AG$5),INDIRECT($AG$4)^{1,2,3,4,5,6,7}),1,AF16) -> -147.5574475 | AJ16: a0=-147.557447540685 | AK16: -147.56 | AL16: -147.56
A17: 5.5 | B17: 49 | C17: 0 | D17: 48.7 | H17: Tin | I17: Pin | J17: Pout | K17: Pr | L17: IsoT_ | M17: Vol_ | N17: rho | O17: m | P17: Motor Eff. | Q17: P | R17: Need | S17: Number | U17: delta | V17: delta | AL17: =SUM(AL9:AL16) -> 49.37555298 | AM17: %
A18: =A17+0.5 -> 6 | B18: 48.3 | C18: 0 | D18: 47.4 | H18: K | I18: atm | J18: atm | L18: % | M18: % | N18: kg/m3 | O18: g/s | P18: % | Q18: kW | R18: g/s | S18: of unit | U18: g/s | V18: % | AF18: variable | AG18: x | AL18: =SUM(($AK$11:$AK$16)*AL7^($AI$11:$AI$16)) -> 55.76011719
A19: 6.5 | B19: 47.5 | C19: 0 | D19: 46.2 | G19: case 2 | AF19: Equation | AG19: =TEXT(AK9,"#0.000E+0")&"*x^"&AI9&"+("&AK10&")*x^"&AI10&"+("&AK11&")*x^"&AI11&AI10&"+é"&AK11&")*x^"&AI12 -> 5.931E-4*x^7+(-0.027634)*x^6+(0.53891)*x^56+é0.53891)*x^4
A20: =A19+0.5 -> 7 | B20: 46.7 | C20: 0 | D20: 45.4 | G20: MP_HP | H20: 300 | I20: 6.06 | J20: 19 | K20: =J20/I20 -> 3.135313531 | L20: =[2]!extrapol_($K20,Pressure_ratio,INDIRECT(L$9&$G20))/100 -> 0.5292706271 | M20: =[2]!extrapol_($K20,Pressure_ratio,INDIRECT(M$9&$G20))/100 -> 0.79 | N20: =[2]!rho_(10,I20/1.013,H20) -> 0.957355355 | O20: =$K$5*N20/3.6*M20 -> 1325.644641 | P20: 0.96 | Q20: =O20*8.0312*H20/4.002*LN(K20)/L20/1000/P20 -> 1794.923831 | R20: 1321.4 | S20: =R20/O20 -> 0.9967980548 | T20: 1 | U20: =O20*T20-R20 -> 4.244641462 | V20: =U20/(T20*O20) -> 0.003201945174 | AG20: Xs | AH20: =CELL("address",A9)&":"&CELL("address",A26) -> $A$9:$A$26 | AI20: Pressure_ratio | AJ20: Pressure_ratio | AK20: Pressure_ratio | AL20: Pressure_ratio
A21: 7.5 | B21: 45.8 | C21: 0 | D21: 44.5 | G21: LPR_MP | H21: 300 | I21: 2.308 | J21: 6.06 | K21: =J21/I21 -> 2.625649913 | L21: =[2]!extrapol_($K21,Pressure_ratio,INDIRECT(L$9&$G21))/100 -> 0.5562409012 | M21: =[2]!extrapol_($K21,Pressure_ratio,INDIRECT(M$9&$G21))/100 -> 0.875 | N21: =[2]!rho_(10,I21/1.013,H21) -> 0.3652329656 | O21: =$K$5*N21/3.6*M21 -> 560.1506975 | P21: 0.94 | Q21: =O21*8.0312*H21/4.002*LN(K21)/L21/1000/P21 -> 622.6067512 | R21: 562.7 | S21: =R21/O21 -> 1.004551101 | T21: 1 | U21: =O21*T21-R21 -> -2.54930247 | V21: -0.004551101125 | AG21: Ys | AH21: =CELL("address",B9)&":"&CELL("address",B26) -> $B$9:$B$26 | AI21: IsoT_LPL_MP | AJ21: IsoT_LPL_MP | AK21: IsoT_LPL_MP | AL21: IsoT_LPL_MP
A22: =A21+0.5 -> 8 | B22: 45 | C22: 0 | D22: 43.7 | G22: LPL_MP | H22: 300 | I22: 1.05 | J22: 6.06 | K22: 5.771428571 | L22: =[2]!extrapol_($K22,Pressure_ratio,INDIRECT(L$9&$G22))/100 -> 0.4862 | M22: =[2]!extrapol_($K22,Pressure_ratio,INDIRECT(M$9&$G22))/100 -> 0.8452 | N22: =[2]!rho_(10,I22/1.013,H22) -> 0.1662530425 | O22: 246.2952003 | P22: 0.94 | Q22: 568.7216459 | R22: 748.7 | S22: =R22/O22 -> 3.039848113 | T22: 3 | U22: =O22*T22-R22 -> -9.81439908 | V22: -0.01328270448 | AG22: Pressure Ratio | AH22: 2.5 | AI22: 2.5 | AJ22: 3.5 | AK22: 4.5 | AL22: 5.5
A23: 8.5 | B23: 44.1 | C23: 0 | D23: 42.9 | P23: Total needed Power | Q23: =SUMPRODUCT(Q20:Q22,T20:T22) -> 4123.69552 | AG23: Iso_eff | AH23: =((INDEX(LINEST(INDIRECT(AH$21),INDIRECT(AH$20)^{1,2,3,4,5,6,7}),1)*AH22^7)+(INDEX(LINEST(INDIRECT(AH$21),INDIRECT(AH$20)^{1,2,3,4,5,6,7}),1,2)*AH22^6)+(INDEX(LINEST(INDIRECT(AH$21),INDIRECT(AH$20)^{1,2,3,4,5,6,7}),1,3)*AH22^5)+(INDEX(LINEST(INDIRECT(AH$21),INDIRECT(AH$20)^{1,2,3,4,5,6,7}),1,4)*AH22^4)+(INDEX(LINEST(INDIRECT(AH$21),INDIRECT(AH$20)^{1,2,3,4,5,6,7}),1,5)*AH22^3)+(INDEX(LINEST(INDIRECT(AH$21),INDIRECT(AH$20)^{1,2,3,4,5,6,7}),1,6)*AH22^2)+(INDEX(LINEST(INDIRECT(AH$21),INDIRECT(AH$20)^{1,2,3,4,5,6,7}),1,7)*AH22)+INDEX(LINEST(INDIRECT(AH$21),INDIRECT(AH$20)^{1,2,3,4,5,6,7}),1,8)) -> 49.34013625 | AI23: =((INDEX(LINEST(INDIRECT(AI$21),INDIRECT(AI$20)^{1,2,3,4,5,6,7}),1)*AI22^7)+(INDEX(LINEST(INDIRECT(AI$21),INDIRECT(AI$20)^{1,2,3,4,5,6,7}),1,2)*AI22^6)+(INDEX(LINEST(INDIRECT(AI$21),INDIRECT(AI$20)^{1,2,3,4,5,6,7}),1,3)*AI22^5)+(INDEX(LINEST(INDIRECT(AI$21),INDIRECT(AI$20)^{1,2,3,4,5,6,7}),1,4)*AI22^4)+(INDEX(LINEST(INDIRECT(AI$21),INDIRECT(AI$20)^{1,2,3,4,5,6,7}),1,5)*AI22^3)+(INDEX(LINEST(INDIRECT(AI$21),INDIRECT(AI$20)^{1,2,3,4,5,6,7}),1,6)*AI22^2)+(INDEX(LINEST(INDIRECT(AI$21),INDIRECT(AI$20)^{1,2,3,4,5,6,7}),1,7)*AI22)+INDEX(LINEST(INDIRECT(AI$21),INDIRECT(AI$20)^{1,2,3,4,5,6,7}),1,8)) -> 49.34013625 | AJ23: =((INDEX(LINEST(INDIRECT(AJ$21),INDIRECT("Pressure_ratio")^{1,2,3,4,5,6,7}),1)*AJ22^7)+(INDEX(LINEST(INDIRECT(AJ$21),INDIRECT("Pressure_ratio")^{1,2,3,4,5,6,7}),1,2)*AJ22^6)+(INDEX(LINEST(INDIRECT(AJ$21),INDIRECT("Pressure_ratio")^{1,2,3,4,5,6,7}),1,3)*AJ22^5)+(INDEX(LINEST(INDIRECT(AJ$21),INDIRECT("Pressure_ratio")^{1,2,3,4,5,6,7}),1,4)*AJ22^4)+(INDEX(LINEST(INDIRECT(AJ$21),INDIRECT("Pressure_ratio")^{1,2,3,4,5,6,7}),1,5)*AJ22^3)+(INDEX(LINEST(INDIRECT(AJ$21),INDIRECT("Pressure_ratio")^{1,2,3,4,5,6,7}),1,6)*AJ22^2)+(INDEX(LINEST(INDIRECT(AJ$21),INDIRECT("Pressure_ratio")^{1,2,3,4,5,6,7}),1,7)*AJ22)+INDEX(LINEST(INDIRECT(AJ$21),INDIRECT("Pressure_ratio")^{1,2,3,4,5,6,7}),1,8)) -> 50.99098877 | AK23: =((INDEX(LINEST(INDIRECT(AK$21),INDIRECT(AK$20)^{1,2,3,4,5,6,7}),1)*AK22^7)+(INDEX(LINEST(INDIRECT(AK$21),INDIRECT(AK$20)^{1,2,3,4,5,6,7}),1,2)*AK22^6)+(INDEX(LINEST(INDIRECT(AK$21),INDIRECT(AK$20)^{1,2,3,4,5,6,7}),1,3)*AK22^5)+(INDEX(LINEST(INDIRECT(AK$21),INDIRECT(AK$20)^{1,2,3,4,5,6,7}),1,4)*AK22^4)+(INDEX(LINEST(INDIRECT(AK$21),INDIRECT(AK$20)^{1,2,3,4,5,6,7}),1,5)*AK22^3)+(INDEX(LINEST(INDIRECT(AK$21),INDIRECT(AK$20)^{1,2,3,4,5,6,7}),1,6)*AK22^2)+(INDEX(LINEST(INDIRECT(AK$21),INDIRECT(AK$20)^{1,2,3,4,5,6,7}),1,7)*AK22)+INDEX(LINEST(INDIRECT(AK$21),INDIRECT(AK$20)^{1,2,3,4,5,6,7}),1,8)) -> 50.07821675 | AL23: =((INDEX(LINEST(INDIRECT(AL$21),INDIRECT(AL$20)^{1,2,3,4,5,6,7}),1)*AL22^7)+(INDEX(LINEST(INDIRECT(AL$21),INDIRECT(AL$20)^{1,2,3,4,5,6,7}),1,2)*AL22^6)+(INDEX(LINEST(INDIRECT(AL$21),INDIRECT(AL$20)^{1,2,3,4,5,6,7}),1,3)*AL22^5)+(INDEX(LINEST(INDIRECT(AL$21),INDIRECT(AL$20)^{1,2,3,4,5,6,7}),1,4)*AL22^4)+(INDEX(LINEST(INDIRECT(AL$21),INDIRECT(AL$20)^{1,2,3,4,5,6,7}),1,5)*AL22^3)+(INDEX(LINEST(INDIRECT(AL$21),INDIRECT(AL$20)^{1,2,3,4,5,6,7}),1,6)*AL22^2)+(INDEX(LINEST(INDIRECT(AL$21),INDIRECT(AL$20)^{1,2,3,4,5,6,7}),1,7)*AL22)+INDEX(LINEST(INDIRECT(AL$21),INDIRECT(AL$20)^{1,2,3,4,5,6,7}),1,8)) -> 49.02509385
A24: =A23+0.5 -> 9 | B24: 43.2 | C24: 0 | D24: 42.2
A25: 9.5 | B25: 42.4 | C25: 0 | D25: 41.5 | AF25: Nom des indirect($L$27): | AG25: IsoT_LPL_MP | AH25: =CELL("address",AF31)&":"&CELL("address",O97) -> $AF$31:$O$97
A26: =A25+0.5 -> 10 | B26: 41.5 | C26: 0 | D26: 40.9 | Q26: =I20*10^5*K5/3600*LN(K20)/L20/P20 -> 2388876.917 | AF26: Nom des indirect($L$28) | AG26: IsoT_ratio | AL26: b = =INDEX(LINEST(y,x^{1,2}),1,3)
B29: volumetric efficiency | AF29: X | AG29: Y | AI29: 1 | AJ29: 1 | AK29: 1 | AL29: 1 | AM29: 1 | AN29: 1 | AO29: 1 | AP29: 1 | AQ29: 1 | AR29: 1
A30: ratio pressure | B30: LPL to MP | C30: LPR to MP | D30: MP to HP | AF30: T | AG30: ALU k | AI30: Linear | AJ30: Log | AK30: Power | AL30: Exp | AM30: 2nd Order Poly | AN30: 3rd Order Poly | AO30: 4th Order Poly | AP30: 5th Order Poly | AQ30: 6th Order Poly | AR30: 7th Order Poly
A31: 1.5 | B31: 86.1 | C31: 86.7 | D31: 0 | AF31: 2.5 | AG31: 30.4 | AI31: =(AF31*SLOPE(INDIRECT($AH$21),INDIRECT($AH$20))+INTERCEPT(INDIRECT($AH$21),INDIRECT($AH$20)))*AI$29 -> 46.7369797 | AJ31: =((INDEX(LINEST(INDIRECT($AH$21),LN(INDIRECT($AH$20))),1)*LN(AF31))+INDEX(LINEST(INDIRECT($AH$21),LN(INDIRECT($AH$20))),1,2)) -> 45.36165192 | AK31: =(EXP(INDEX(LINEST(LN(INDIRECT($AH$21)),LN(INDIRECT($AH$20)),,),1,2))*AF31^INDEX(LINEST(LN(INDIRECT($AH$21)),LN(INDIRECT($AH$20)),,),1)) -> 44.52526756 | AL31: =(EXP(INDEX(LINEST(LN(INDIRECT($AH$21)),INDIRECT($AH$20)),1,2))*EXP(1)^(AF31*INDEX(LINEST(LN(INDIRECT($AH$21)),INDIRECT($AH$20)),1) )) -> 46.03045892 | AM31: =((INDEX(LINEST(INDIRECT($AH$21),INDIRECT($AH$20)^{1,2}),1)*AF31^2)+(INDEX(LINEST(INDIRECT($AH$21),INDIRECT($AH$20)^{1,2}),1,2)*AF31)+INDEX(LINEST(INDIRECT($AH$21),INDIRECT($AH$20)^{1,2}),1,3)) -> 44.48168215 | AN31: =((INDEX(LINEST(INDIRECT($AH$21),INDIRECT($AH$20)^{1,2,3}),1)*AF31^3)+(INDEX(LINEST(INDIRECT($AH$21),INDIRECT($AH$20)^{1,2,3}),1,2)*AF31^2)+(INDEX(LINEST(INDIRECT($AH$21),INDIRECT($AH$20)^{1,2,3}),1,3)*AF31)+INDEX(LINEST(INDIRECT($AH$21),INDIRECT($AH$20)^{1,2,3}),1,4)) -> 45.40849673 | AO31: =((INDEX(LINEST(INDIRECT($AH$21),INDIRECT($AH$20)^{1,2,3,4}),1)*AF31^4)+(INDEX(LINEST(INDIRECT($AH$21),INDIRECT($AH$20)^{1,2,3,4}),1,2)*AF31^3)+(INDEX(LINEST(INDIRECT($AH$21),INDIRECT($AH$20)^{1,2,3,4}),1,3)*AF31^2)+(INDEX(LINEST(INDIRECT($AH$21),INDIRECT($AH$20)^{1,2,3,4}),1,4)*AF31)+INDEX(LINEST(INDIRECT($AH$21),INDIRECT($AH$20)^{1,2,3,4}),1,5)) -> 47.41092426 | AP31: =((INDEX(LINEST(INDIRECT($AH$21),INDIRECT($AH$20)^{1,2,3,4,5}),1)*AF31^5)+(INDEX(LINEST(INDIRECT($AH$21),INDIRECT($AH$20)^{1,2,3,4,5}),1,2)*AF31^4)+(INDEX(LINEST(INDIRECT($AH$21),INDIRECT($AH$20)^{1,2,3,4,5}),1,3)*AF31^3)+(INDEX(LINEST(INDIRECT($AH$21),INDIRECT($AH$20)^{1,2,3,4,5}),1,4)*AF31^2)+(INDEX(LINEST(INDIRECT($AH$21),INDIRECT($AH$20)^{1,2,3,4,5}),1,5)*AF31)+INDEX(LINEST(INDIRECT($AH$21),INDIRECT($AH$20)^{1,2,3,4,5}),1,6)) -> 48.8528908 | AQ31: =((INDEX(LINEST(INDIRECT($AH$21),INDIRECT($AH$20)^{1,2,3,4,5,6}),1)*AF31^6)+(INDEX(LINEST(INDIRECT($AH$21),INDIRECT($AH$20)^{1,2,3,4,5,6}),1,2)*AF31^5)+(INDEX(LINEST(INDIRECT($AH$21),INDIRECT($AH$20)^{1,2,3,4,5,6}),1,3)*AF31^4)+(INDEX(LINEST(INDIRECT($AH$21),INDIRECT($AH$20)^{1,2,3,4,5,6}),1,4)*AF31^3)+(INDEX(LINEST(INDIRECT($AH$21),INDIRECT($AH$20)^{1,2,3,4,5,6}),1,5)*AF31^2)+(INDEX(LINEST(INDIRECT($AH$21),INDIRECT($AH$20)^{1,2,3,4,5,6}),1,6)*AF31)+INDEX(LINEST(INDIRECT($AH$21),INDIRECT($AH$20)^{1,2,3,4,5,6}),1,7)) -> 49.33624385 | AR31: =((INDEX(LINEST(INDIRECT($AH$21),INDIRECT($AH$20)^{1,2,3,4,5,6,7}),1)*AF31^7)+(INDEX(LINEST(INDIRECT($AH$21),INDIRECT($AH$20)^{1,2,3,4,5,6,7}),1,2)*AF31^6)+(INDEX(LINEST(INDIRECT($AH$21),INDIRECT($AH$20)^{1,2,3,4,5,6,7}),1,3)*AF31^5)+(INDEX(LINEST(INDIRECT($AH$21),INDIRECT($AH$20)^{1,2,3,4,5,6,7}),1,4)*AF31^4)+(INDEX(LINEST(INDIRECT($AH$21),INDIRECT($AH$20)^{1,2,3,4,5,6,7}),1,5)*AF31^3)+(INDEX(LINEST(INDIRECT($AH$21),INDIRECT($AH$20)^{1,2,3,4,5,6,7}),1,6)*AF31^2)+(INDEX(LINEST(INDIRECT($AH$21),INDIRECT($AH$20)^{1,2,3,4,5,6,7}),1,7)*AF31)+INDEX(LINEST(INDIRECT($AH$21),INDIRECT($AH$20)^{1,2,3,4,5,6,7}),1,8)) -> 49.34013625
A32: =A31+0.5 -> 2 | B32: 86.8 | C32: 87.2 | D32: 0 | AF32: 2 | AG32: 43.7 | AI32: =(AF32*SLOPE(INDIRECT($AH$21),INDIRECT($AH$20))+INTERCEPT(INDIRECT($AH$21),INDIRECT($AH$20)))*AI$29 -> 46.83925009 | AJ32: =((INDEX(LINEST(INDIRECT($AH$21),LN(INDIRECT($AH$20))),1)*LN(AF32))+INDEX(LINEST(INDIRECT($AH$21),LN(INDIRECT($AH$20))),1,2)) -> 45.13643624 | AK32: =(EXP(INDEX(LINEST(LN(INDIRECT($AH$21)),LN(INDIRECT($AH$20)),,),1,2))*AF32^INDEX(LINEST(LN(INDIRECT($AH$21)),LN(INDIRECT($AH$20)),,),1)) -> 44.13630884 | AL32: =(EXP(INDEX(LINEST(LN(INDIRECT($AH$21)),INDIRECT($AH$20)),1,2))*EXP(1)^(AF32*INDEX(LINEST(LN(INDIRECT($AH$21)),INDIRECT($AH$20)),1) )) -> 46.06987599 | AM32: =((INDEX(LINEST(INDIRECT($AH$21),INDIRECT($AH$20)^{1,2}),1)*AF32^2)+(INDEX(LINEST(INDIRECT($AH$21),INDIRECT($AH$20)^{1,2}),1,2)*AF32)+INDEX(LINEST(INDIRECT($AH$21),INDIRECT($AH$20)^{1,2}),1,3)) -> 42.5247678 | AN32: =((INDEX(LINEST(INDIRECT($AH$21),INDIRECT($AH$20)^{1,2,3}),1)*AF32^3)+(INDEX(LINEST(INDIRECT($AH$21),INDIRECT($AH$20)^{1,2,3}),1,2)*AF32^2)+(INDEX(LINEST(INDIRECT($AH$21),INDIRECT($AH$20)^{1,2,3}),1,3)*AF32)+INDEX(LINEST(INDIRECT($AH$21),INDIRECT($AH$20)^{1,2,3}),1,4)) -> 41.09889921 | AO32: =((INDEX(LINEST(INDIRECT($AH$21),INDIRECT($AH$20)^{1,2,3,4}),1)*AF32^4)+(INDEX(LINEST(INDIRECT($AH$21),INDIRECT($AH$20)^{1,2,3,4}),1,2)*AF32^3)+(INDEX(LINEST(INDIRECT($AH$21),INDIRECT($AH$20)^{1,2,3,4}),1,3)*AF32^2)+(INDEX(LINEST(INDIRECT($AH$21),INDIRECT($AH$20)^{1,2,3,4}),1,4)*AF32)+INDEX(LINEST(INDIRECT($AH$21),INDIRECT($AH$20)^{1,2,3,4}),1,5)) -> 41.6101573 | AP32: =((INDEX(LINEST(INDIRECT($AH$21),INDIRECT($AH$20)^{1,2,3,4,5}),1)*AF32^5)+(INDEX(LINEST(INDIRECT($AH$21),INDIRECT($AH$20)^{1,2,3,4,5}),1,2)*AF32^4)+(INDEX(LINEST(INDIRECT($AH$21),INDIRECT($AH$20)^{1,2,3,4,5}),1,3)*AF32^3)+(INDEX(LINEST(INDIRECT($AH$21),INDIRECT($AH$20)^{1,2,3,4,5}),1,4)*AF32^2)+(INDEX(LINEST(INDIRECT($AH$21),INDIRECT($AH$20)^{1,2,3,4,5}),1,5)*AF32)+INDEX(LINEST(INDIRECT($AH$21),INDIRECT($AH$20)^{1,2,3,4,5}),1,6)) -> 42.72929551 | AQ32: =((INDEX(LINEST(INDIRECT($AH$21),INDIRECT($AH$20)^{1,2,3,4,5,6}),1)*AF32^6)+(INDEX(LINEST(INDIRECT($AH$21),INDIRECT($AH$20)^{1,2,3,4,5,6}),1,2)*AF32^5)+(INDEX(LINEST(INDIRECT($AH$21),INDIRECT($AH$20)^{1,2,3,4,5,6}),1,3)*AF32^4)+(INDEX(LINEST(INDIRECT($AH$21),INDIRECT($AH$20)^{1,2,3,4,5,6}),1,4)*AF32^3)+(INDEX(LINEST(INDIRECT($AH$21),INDIRECT($AH$20)^{1,2,3,4,5,6}),1,5)*AF32^2)+(INDEX(LINEST(INDIRECT($AH$21),INDIRECT($AH$20)^{1,2,3,4,5,6}),1,6)*AF32)+INDEX(LINEST(INDIRECT($AH$21),INDIRECT($AH$20)^{1,2,3,4,5,6}),1,7)) -> 43.56266284 | AR32: =((INDEX(LINEST(INDIRECT($AH$21),INDIRECT($AH$20)^{1,2,3,4,5,6,7}),1)*AF32^7)+(INDEX(LINEST(INDIRECT($AH$21),INDIRECT($AH$20)^{1,2,3,4,5,6,7}),1,2)*AF32^6)+(INDEX(LINEST(INDIRECT($AH$21),INDIRECT($AH$20)^{1,2,3,4,5,6,7}),1,3)*AF32^5)+(INDEX(LINEST(INDIRECT($AH$21),INDIRECT($AH$20)^{1,2,3,4,5,6,7}),1,4)*AF32^4)+(INDEX(LINEST(INDIRECT($AH$21),INDIRECT($AH$20)^{1,2,3,4,5,6,7}),1,5)*AF32^3)+(INDEX(LINEST(INDIRECT($AH$21),INDIRECT($AH$20)^{1,2,3,4,5,6,7}),1,6)*AF32^2)+(INDEX(LINEST(INDIRECT($AH$21),INDIRECT($AH$20)^{1,2,3,4,5,6,7}),1,7)*AF32)+INDEX(LINEST(INDIRECT($AH$21),INDIRECT($AH$20)^{1,2,3,4,5,6,7}),1,8)) -> 43.86627032
A33: 2.5 | B33: 87.3 | C33: 87.5 | D33: 78.7
A34: =A33+0.5 -> 3 | B34: 87.4 | C34: 87.5 | D34: 79
A35: 3.5 | B35: 87.3 | C35: 87.1 | D35: 79
A36: =A35+0.5 -> 4 | B36: 86.9 | C36: 86.5 | D36: 78.7
A37: 4.5 | B37: 86.4 | C37: 85.6 | D37: 78.3
A38: =A37+0.5 -> 5 | B38: 85.6 | C38: 84.4 | D38: 77.8
A39: 5.5 | B39: 84.9 | C39: 0 | D39: 77.3 | AG39: =tex ->  | AH39: 2.5 | AI39: =[2]!f_reg_(AH39,Pressure_ratio,IsoT_LPL_MP,6,"form") -> -3.76E-03* x^6 + 14.564E-2*x^5 -22.783E-1*x^4 + 18.388E+0*x^3 -80.719E+0*x^2 + 18.168E+1*x - 111.988
A40: =A39+0.5 -> 6 | B40: 84.2 | C40: 0 | D40: 76.9 | AG40: =TEXT(AK9,"0.0") -> 0.0 | AH40: 2.5 | AI40: =[2]!f_reg_(AH40,Pressure_ratio,IsoT_LPL_MP,6,"value") -> 49.33624385
A41: 6.5 | B41: 83.5 | C41: 0 | D41: 76.6
A42: =A41+0.5 -> 7 | B42: 82.9 | C42: 0 | D42: 76.3 | AH42: 2.5 | AI42: =[2]!f_reg_(AH42,Pressure_ratio,IsoT_LPL_MP,7,"form") -> 5.93E-04* x^7 -27.634E-3*x^6 + 53.891E-2*x^5 -56.918E-1*x^4 + 35.113E+0*x^3 -12.655E+1*x^2 + 24.613E+1*x - 147.557
A43: 7.5 | B43: 82.3 | C43: 0 | D43: 76 | AH43: 2.5 | AI43: =[2]!f_reg_(AH43,Pressure_ratio,IsoT_LPL_MP,6,"value") -> 49.33624385
A44: =A43+0.5 -> 8 | B44: 81.7 | C44: 0 | D44: 75.8
A45: 8.5 | B45: 81.1 | C45: 0 | D45: 75.7
A46: =A45+0.5 -> 9 | B46: 80.6 | C46: 0 | D46: 75.5
A47: 9.5 | B47: 80.1 | C47: 0 | D47: 75.4
A48: =A47+0.5 -> 10 | B48: 79.6 | C48: 0 | D48: 75.3
B52: volumetric efficiency
A53: ratio pressure | B53: LP to MP | C53: MP to HP
A54: 2.5 | B54: 87.3 | C54: 78.7
A55: =A54+0.5 -> 3 | B55: 87.4 | C55: 79
A56: 3.5 | B56: 87.3 | C56: 79
A57: =A56+0.5 -> 4 | B57: 86.9 | C57: 78.7
A58: 4.5 | B58: 86.4 | C58: 78.3
A59: =A58+0.5 -> 5 | B59: 85.6 | C59: 77.8
A60: 5.5 | B60: 84.9 | C60: 77.3
A61: =A60+0.5 -> 6 | B61: 84.2 | C61: 76.9
A62: 6.5 | B62: 83.5 | C62: 76.6
A63: =A62+0.5 -> 7 | B63: 82.9 | C63: 76.3
A64: 7.5 | B64: 82.3 | C64: 76
A65: =A64+0.5 -> 8 | B65: 81.7 | C65: 75.8
A66: 8.5 | B66: 81.1 | C66: 75.7
A67: =A66+0.5 -> 9 | B67: 80.6 | C67: 75.5
A68: 9.5 | B68: 80.1 | C68: 75.4
A69: =A68+0.5 -> 10 | B69: 79.6 | C69: 75.3
B76: isoT efficiency
A77: ratio pressure | B77: LP to MP | C77: LPR to MP | D77: MP to HP
A78: 1.5 | B78: 30.4 | C78: 48.1
A79: =A78+0.5 -> 2 | B79: 43.7 | C79: 53.8
A80: 2.5 | B80: 49.6 | C80: 55.8 | D80: 52.5
A81: =A80+0.5 -> 3 | B81: 50.9 | C81: 55.1 | D81: 52.9
A82: 3.5 | B82: 50.8 | C82: 53.9 | D82: 53
A83: =A82+0.5 -> 4 | B83: 50.6 | C83: 52.3 | D83: 52.4
A84: 4.5 | B84: 50.2 | C84: 50.8 | D84: 51.3
A85: =A84+0.5 -> 5 | B85: 49.6 | C85: 49.4 | D85: 50.1
A86: 5.5 | B86: 49 | D86: 48.7
A87: =A86+0.5 -> 6 | B87: 48.3 | D87: 47.4
A88: 6.5 | B88: 47.5 | D88: 46.2
A89: =A88+0.5 -> 7 | B89: 46.7 | D89: 45.4
A90: 7.5 | B90: 45.8 | D90: 44.5
A91: =A90+0.5 -> 8 | B91: 45 | D91: 43.7
A92: 8.5 | B92: 44.1 | D92: 42.9
A93: =A92+0.5 -> 9 | B93: 43.2 | D93: 42.2
A94: 9.5 | B94: 42.4 | D94: 41.5
A95: =A94+0.5 -> 10 | B95: 41.5 | D95: 40.9
N108: WRVI321/132 | R108: WRVI321/193
N109: 4541 | R109: 6386
D110: Tin | E110: P suction | F110: Pdischarge | G110: P ratio | I110: rdt isoT calc | J110: rdt vol calc | M110: Rho | N110: Am3/h | O110: g/s | Q110: Power /unit | R110: Am3/h | S110: g/s | U110: Power /unit | V110: nb unit
B111: MP_HP | C111: 1321.4 | D111: 300 | E111: 6.06 | F111: 19 | G111: =F111/E111 -> 3.135313531 | I111: =0.0012*G111^6 - 0.0429*G111^5 + 0.6099*G111^4 - 4.185*G111^3 + 13.77*G111^2 - 19.318*G111 + 60.184 -> 53.07157081 | J111: =0.00006*G111^6 - 0.0012*G111^5 - 0.0081*G111^4 + 0.3679*G111^3 - 3.3791*G111^2 + 11.852*G111 + 64.85 -> 79.04218673 | M111: =1.27581621531631*E111*273.15/(D111)*4/28.958600656 -> 0.9723511033 | N111: =N$109*$J111/100 -> 3589.305699 | O111: =#REF!*$M111/3600*1000 ->  | Q111: =$E111*10^5*#REF!/3600*LN($F111/$E111)/($I111/100)/1000 ->  | R111: =R$109*$J111/100 -> 5047.634045 | S111: =R111*$M111/3600*1000 -> 1363.353481 | U111: =$E111*10^5*R111/3600*LN($F111/$E111)/($I111/100)/1000 -> 1829.529258 | V111: =$C111/S111 -> 0.9692277302 | W111: =ROUND(V111,0) -> 1 | X111: =W111*U111 -> 1829.529258
B112: LPR_MP | C112: 562.7 | D112: 297 | E112: 2.31 | F112: 6.06 | G112: =F112/E112 -> 2.623376623 | I112: =0.1067*G112^6 - 2.0738*G112^5 + 16*G112^4 - 61.153*G112^3 + 115.21*G112^2 - 86.125*G112 + 57.983 -> 55.77422268 | J112: =0.0044*G112^6 - 0.1103*G112^5 + 1.0778*G112^4 - 5.3213*G112^3 + 13.394*G112^2 - 15.328*G112 + 92.846 -> 87.5186371 | M112: =1.27581621531631*E112*273.15/(D112)*4/28.958600656 -> 0.374392614 | N112: =N$109*$J112/100 -> 3974.221311 | O112: =#REF!*$M112/3600*1000 ->  | Q112: =$E112*10^5*#REF!/3600*LN($F112/$E112)/($I112/100)/1000 ->  | R112: =R$109*$J112/100 -> 5588.940165 | S112: =R112*$M112/3600*1000 -> 581.2383106 | U112: =$E112*10^5*R112/3600*LN($F112/$E112)/($I112/100)/1000 -> 620.1413039 | V112: =$C112/S112 -> 0.9681054909 | W112: =ROUND(V112,0) -> 1 | X112: =W112*U112 -> 620.1413039
B113: LPL_MP | C113: 748.6 | D113: 297 | E113: 1.05 | F113: 6.06 | G113: =F113/E113 -> 5.771428571 | I113: =-0.0037608*G113^6 + 0.14564*G113^5 - 2.2783*G113^4 + 18.388*G113^3 - 80.719*G113^2 + 181.68*G113 - 111.99 -> 48.62878744 | J113: =0.0003*G113^6 - 0.0107*G113^5 + 0.1444*G113^4 - 0.8896*G113^3 + 2.1316*G113^2 - 0.4678*G113 + 84.351 -> 84.41813256 | M113: =1.27581621531631*E113*273.15/(D113)*4/28.958600656 -> 0.1701784609 | N113: =N$109*$J113/100 -> 3833.4274 | O113: =#REF!*$M113/3600*1000 ->  | Q113: =$E113*10^5*#REF!/3600*LN($F113/$E113)/($I113/100)/1000 ->  | R113: =R$109*$J113/100 -> 5390.941945 | S113: =R113*$M113/3600*1000 -> 254.8395009 | U113: =$E113*10^5*R113/3600*LN($F113/$E113)/($I113/100)/1000 -> 566.7871802 | V113: =$C113/S113 -> 2.937535184 | W113: 3 | X113: =W113*U113 -> 1700.36154
X114: =SUM(X111:X113) -> 4150.032103
D116: Tin | E116: P suction | F116: Pdischarge | G116: P ratio | I116: rdt isoT calc | J116: rdt vol calc | M116: Rho | N116: Am3/h | O116: g/s | Q116: Power /unit | R116: Am3/h | S116: g/s | U116: Power /unit | V116: nb unit
B117: MP_HP | C117: 1321.4 | D117: 310 | E117: 6.06 | F117: 19 | G117: =F117/E117 -> 3.135313531 | I117: =0.0012*G117^6 - 0.0429*G117^5 + 0.6099*G117^4 - 4.185*G117^3 + 13.77*G117^2 - 19.318*G117 + 60.184 -> 53.07157081 | J117: =0.00006*G117^6 - 0.0012*G117^5 - 0.0081*G117^4 + 0.3679*G117^3 - 3.3791*G117^2 + 11.852*G117 + 64.85 -> 79.04218673 | M117: =1.27581621531631*E117*273.15/(D117)*4/28.958600656 -> 0.9409849386 | N117: =N$109*$J117/100 -> 3589.305699 | O117: =#REF!*$M117/3600*1000 ->  | Q117: =$E117*10^5*#REF!/3600*LN($F117/$E117)/($I117/100)/1000 ->  | R117: =R$109*$J117/100 -> 5047.634045 | S117: =R117*$M117/3600*1000 -> 1319.374337 | U117: =$E117*10^5*R117/3600*LN($F117/$E117)/($I117/100)/1000 -> 1829.529258 | V117: =$C117/S117 -> 1.001535321 | W117: =ROUND(V117,0) -> 1 | X117: =W117*U117 -> 1829.529258
B118: LPR_MP | C118: 562.7 | D118: 305.4 | E118: 2.308 | F118: 6.06 | G118: =F118/E118 -> 2.625649913 | I118: =0.1067*G118^6 - 2.0738*G118^5 + 16*G118^4 - 61.153*G118^3 + 115.21*G118^2 - 86.125*G118 + 57.983 -> 55.7734821 | J118: =0.0044*G118^6 - 0.1103*G118^5 + 1.0778*G118^4 - 5.3213*G118^3 + 13.394*G118^2 - 15.328*G118 + 92.846 -> 87.51880831 | M118: =1.27581621531631*E118*273.15/(D118)*4/28.958600656 -> 0.3637797445 | N118: =N$109*$J118/100 -> 3974.229085 | O118: =#REF!*$M118/3600*1000 ->  | Q118: =$E118*10^5*#REF!/3600*LN($F118/$E118)/($I118/100)/1000 ->  | R118: =R$109*$J118/100 -> 5588.951099 | S118: =R118*$M118/3600*1000 -> 564.7631119 | U118: =$E118*10^5*R118/3600*LN($F118/$E118)/($I118/100)/1000 -> 620.1702948 | V118: =$C118/S118 -> 0.9963469429 | W118: =ROUND(V118,0) -> 1 | X118: =W118*U118 -> 620.1702948
B119: LPL_MP | C119: 748.6 | D119: 305.27 | E119: 1.05 | F119: 6.06 | G119: =F119/E119 -> 5.771428571 | I119: =-0.0037608*G119^6 + 0.14564*G119^5 - 2.2783*G119^4 + 18.388*G119^3 - 80.719*G119^2 + 181.68*G119 - 111.99 -> 48.62878744 | J119: =0.0003*G119^6 - 0.0107*G119^5 + 0.1444*G119^4 - 0.8896*G119^3 + 2.1316*G119^2 - 0.4678*G119 + 84.351 -> 84.41813256 | M119: =1.27581621531631*E119*273.15/(D119)*4/28.958600656 -> 0.165568195 | N119: =N$109*$J119/100 -> 3833.4274 | O119: =#REF!*$M119/3600*1000 ->  | Q119: =$E119*10^5*#REF!/3600*LN($F119/$E119)/($I119/100)/1000 ->  | R119: =R$109*$J119/100 -> 5390.941945 | S119: =R119*$M119/3600*1000 -> 247.935702 | U119: =$E119*10^5*R119/3600*LN($F119/$E119)/($I119/100)/1000 -> 566.7871802 | V119: =$C119/S119 -> 3.019331197 | W119: 3 | X119: =W119*U119 -> 1700.36154
X120: =SUM(X117:X119) -> 4150.061094
B121: MP_HP | C121: 403.1 | D121: 300 | E121: 4.27 | F121: 13.8 | G121: =F121/E121 -> 3.231850117 | I121: =0.0012*G121^6 - 0.0429*G121^5 + 0.6099*G121^4 - 4.185*G121^3 + 13.77*G121^2 - 19.318*G121 + 60.184 -> 53.08584373 | J121: =0.00006*G121^6 - 0.0012*G121^5 - 0.0081*G121^4 + 0.3679*G121^3 - 3.3791*G121^2 + 11.852*G121 + 64.85 -> 79.04019076 | M121: =1.27581621531631*E121*273.15/(D121)*4/28.958600656 -> 0.6851384836 | N121: =N$109*$J121/100 -> 3589.215063 | O121: =#REF!*$M121/3600*1000 ->  | Q121: =$E121*10^5*#REF!/3600*LN($F121/$E121)/($I121/100)/1000 ->  | R121: =R$109*$J121/100 -> 5047.506582 | S121: =R121*$M121/3600*1000 -> 960.6225016 | U121: =$E121*10^5*R121/3600*LN($F121/$E121)/($I121/100)/1000 -> 1322.94513 | V121: =$C121/S121 -> 0.4196237329
B122: LPR_MP | C122: 172.2 | D122: 297 | E122: 2.31 | F122: 4.27 | G122: =F122/E122 -> 1.848484848 | I122: =0.1067*G122^6 - 2.0738*G122^5 + 16*G122^4 - 61.153*G122^3 + 115.21*G122^2 - 86.125*G122 + 57.983 -> 52.49951637 | J122: =0.0044*G122^6 - 0.1103*G122^5 + 1.0778*G122^4 - 5.3213*G122^3 + 13.394*G122^2 - 15.328*G122 + 92.846 -> 87.0471809 | M122: =1.27581621531631*E122*273.15/(D122)*4/28.958600656 -> 0.374392614 | N122: =N$109*$J122/100 -> 3952.812485 | O122: =#REF!*$M122/3600*1000 ->  | Q122: =$E122*10^5*#REF!/3600*LN($F122/$E122)/($I122/100)/1000 ->  | R122: =R$109*$J122/100 -> 5558.832972 | S122: =R122*$M122/3600*1000 -> 578.1072243 | U122: =$E122*10^5*R122/3600*LN($F122/$E122)/($I122/100)/1000 -> 417.4122482 | V122: =$C122/S122 -> 0.2978686181
B123: LPL_MP | C123: 220.8 | D123: 297 | E123: 1.05 | F123: 4.27 | G123: =F123/E123 -> 4.066666667 | I123: =-0.0037608*G123^6 + 0.14564*G123^5 - 2.2783*G123^4 + 18.388*G123^3 - 80.719*G123^2 + 181.68*G123 - 111.99 -> 50.45239465 | J123: =0.0003*G123^6 - 0.0107*G123^5 + 0.1444*G123^4 - 0.8896*G123^3 + 2.1316*G123^2 - 0.4678*G123 + 84.351 -> 86.82093776 | M123: =1.27581621531631*E123*273.15/(D123)*4/28.958600656 -> 0.1701784609 | N123: =N$109*$J123/100 -> 3942.538784 | O123: =#REF!*$M123/3600*1000 ->  | Q123: =$E123*10^5*#REF!/3600*LN($F123/$E123)/($I123/100)/1000 ->  | R123: =R$109*$J123/100 -> 5544.385085 | S123: =R123*$M123/3600*1000 -> 262.0930335 | U123: =$E123*10^5*R123/3600*LN($F123/$E123)/($I123/100)/1000 -> 449.6364225 | V123: =$C123/S123 -> 0.8424489467

Sheet Sheet1
